bitfinex-derivatives/quotes_SOLF0:USTF0_20250409
["timestamp","ask_amount","ask_price","bid_price","bid_amount"]
[1744200138911,566.8,103.3,103.2,65.71277717]
[1744200139112,566.8,103.3,103.22,65.64977656]
[1744200139915,632.44977656,103.3,103.21,4.5287]
[1744200140216,0.07108026,103.27,103.25,5.95e-06]
[1744200140420,9.6896,103.26,103.25,5.95e-06]
[1744200140612,64.5896,103.26,103.25,5.95e-06]
[1744200140813,69.3007,103.26,103.25,5.95e-06]
[1744200141412,78.9807,103.26,103.25,5.95e-06]
[1744200141813,69.3007,103.26,103.25,5.95e-06]
[1744200142015,9.6896,103.26,103.25,5.95e-06]
[1744200142214,9.75948026,103.27,103.25,5.95e-06]
[1744200142517,0.07108026,103.27,103.25,5.95e-06]
[1744200143221,0.07108026,103.27,103.25,9.68980595]
[1744200143417,0.07108026,103.27,103.25,5.95e-06]
[1744200143613,0.07108026,103.27,103.25,9.68980595]
[1744200143814,0.07108026,103.27,103.25,5.95e-06]
[1744200144414,54.88,103.35,103.26,65.64977656]
[1744200144609,51.00605887,103.36,103.3,65.64977656]
[1744200144817,51.00605887,103.36,103.32,65.64977656]
[1744200145315,51.00605887,103.36,103.33,9.6815]
[1744200145517,51.00605887,103.36,103.32,65.64977656]
[1744200145822,9.6814,103.34,103.33,0.0637296]
[1744200146821,9.75221335,103.35,103.33,0.0637296]
[1744200147020,0.07151335,103.35,103.33,0.0637296]
[1744200147226,4.85451335,103.35,103.33,0.0637296]
[1744200147417,4.85451335,103.35,103.27,4.6874]
[1744200147723,9.332,103.35,103.27,4.6874]
[1744200148322,9.332,103.35,103.27,14.3749]
[1744200148625,0.069483,103.32,103.3,0.073659]
[1744200149624,0.069483,103.32,103.31,9.6842]
[1744200150226,0.069483,103.32,103.3,14.363559]
[1744200150414,0.069483,103.32,103.3,4.678759]
[1744200151722,9.753283,103.32,103.3,0.073659]
[1744200152025,0.069483,103.32,103.3,0.073659]
[1744200152419,0.069483,103.32,103.3,9.758359]
[1744200153126,0.069483,103.32,103.3,0.073659]
[1744200153326,511.64,103.42,103.31,65.64977656]
[1744200153533,14.0365,103.41,103.33,65.64977656]
[1744200154120,14.0365,103.41,103.31,75.33347656]
[1744200154321,14.0365,103.41,103.33,65.64977656]
[1744200154522,0.06862433,103.37,103.35,0.063112]
[1744200155222,107.52961756,103.49,103.35,500.04266512]
[1744200155528,4.9079,103.46,103.38,65.64977656]
[1744200155715,9.6736,103.43,103.39,9.6767]
[1744200155921,4.9079,103.46,103.38,65.64977656]
[1744200156122,9.7902,103.48,103.38,65.64977656]
[1744200156428,0.06396976,103.44,103.42,0.07080958]
[1744200156726,9.73646976,103.44,103.42,0.07080958]
[1744200156925,0.06396976,103.44,103.42,0.07080958]
[1744200157318,0.06396976,103.44,103.43,75.32277656]
[1744200157525,120.46977656,103.55,103.43,65.64977656]
[1744200157726,9.6661,103.51,103.47,9.6691]
[1744200157927,9.3593,103.53,103.45,65.64977656]
[1744200158324,9.3593,103.53,103.46,62.0]
[1744200158729,0.066902,103.51,103.48,0.06220699]
[1744200158930,0.066902,103.51,103.49,65.64977656]
[1744200159132,54.82,103.58,103.49,424.64977656]
[1744200159329,54.82,103.58,103.5,65.64977656]
[1744200159934,9.6606,103.57,103.52,9.6641]
[1744200160327,0.06503518,103.56,103.53,0.06352136]
[1744200160533,0.06503518,103.56,103.54,65.64977656]
[1744200160931,0.06503518,103.56,103.54,65.72372162]
[1744200161129,0.06503518,103.56,103.54,0.07394506]
[1744200161530,9.6618,103.55,103.54,0.07394506]
[1744200162132,0.06503518,103.56,103.54,0.07394506]
[1744200162435,0.06503518,103.56,103.54,65.72372162]
[1744200162623,0.06503518,103.56,103.55,9.6618]
[1744200162827,0.06503518,103.56,103.54,65.72372162]
[1744200163237,0.06503518,103.56,103.54,75.38592162]
[1744200163432,0.06503518,103.56,103.54,65.72372162]
[1744200165037,0.06503518,103.56,103.54,0.07394506]
[1744200165539,65.64977656,103.55,103.42,359.0]
[1744200165740,54.74,103.54,103.44,8.0792]
[1744200166038,64.0147,103.54,103.46,9.6697]
[1744200166238,64.0147,103.54,103.44,8.0792]
[1744200166633,0.07328874,103.51,103.48,0.07457743]
[1744200167240,363.0,103.6,103.49,65.64977656]
[1744200167440,14.051,103.59,103.49,65.64977656]
[1744200167633,14.051,103.59,103.49,75.31647656]
[1744200167634,9.6632,103.54,103.49,75.31647656]
[1744200167939,14.051,103.59,103.49,65.64977656]
[1744200168140,14.051,103.59,103.5,71.666]
[1744200168547,0.07071558,103.56,103.53,0.07077066]
[1744200168742,9.6629,103.54,103.53,0.07077066]
[1744200169937,54.64,103.54,103.48,359.0]
[1744200170142,54.64,103.54,103.45,65.64977656]
[1744200170543,9.6669,103.5,103.45,65.64977656]
[1744200170732,65.64977656,103.56,103.45,120.28977656]
[1744200170932,65.64977656,103.56,103.45,65.64977656]
[1744200171132,65.64977656,103.54,103.49,0.067549]
[1744200171441,65.71610622,103.52,103.44,9.2194]
[1744200171637,54.64,103.51,103.44,9.2194]
[1744200172338,65.64977656,103.52,103.44,4.5963]
[1744200172538,0.06990654,103.49,103.46,0.06186292]
[1744200172738,9.73770654,103.49,103.46,0.06186292]
[1744200172937,9.73770654,103.49,103.45,9.6705]
[1744200173238,9.73770654,103.49,103.46,0.07434407]
[1744200173741,0.06990654,103.49,103.46,0.07434407]
[1744200173947,0.06990654,103.49,103.47,9.6692]
[1744200174147,65.64977656,103.57,103.47,65.64977656]
[1744200174347,4.7124,103.56,103.48,9.6679]
[1744200174649,4.7124,103.56,103.47,65.64977656]
[1744200174949,59.3524,103.56,103.47,65.64977656]
[1744200175149,63.8056,103.56,103.47,65.64977656]
[1744200175346,0.07259599,103.53,103.5,0.06786377]
[1744200175547,9.665,103.52,103.5,0.06786377]
[1744200175849,0.07259599,103.53,103.5,0.06786377]
[1744200176056,9.6604,103.57,103.53,9.6636]
[1744200176350,4.6769,103.6,103.55,65.64977656]
[1744200176652,510.34,103.66,103.57,65.64977656]
[1744200176653,9.1123,103.64,103.57,65.64977656]
[1744200176946,9.1123,103.64,103.55,70.41827656]
[1744200177447,0.0624314,103.61,103.58,0.06466703]
[1744200177642,4.6769,103.68,103.59,65.64977656]
[1744200178245,54.62,103.67,103.59,75.30737656]
[1744200178549,120.26977656,103.67,103.57,424.64977656]
[1744200178754,9.6557,103.62,103.57,65.64977656]
[1744200179050,9.6557,103.62,103.61,0.06992424]
[1744200179250,0.07178988,103.61,103.59,65.64977656]
[1744200179451,4.6769,103.68,103.6,0.06253064]
[1744200179839,9.6548,103.63,103.59,129.92727656]
[1744200180247,4.6769,103.68,103.59,120.26977656]
[1744200180452,65.64977656,103.66,103.56,4.8181]
[1744200180747,0.07286363,103.65,103.62,0.06345426]
[1744200180944,65.64977656,103.66,103.56,4.8181]
[1744200181351,9.6558,103.62,103.59,9.658]
[1744200181649,65.64977656,103.66,103.56,4.8181]
[1744200181852,54.6,103.67,103.56,4.8181]
[1744200182143,0.06437751,103.62,103.6,0.06290286]
[1744200182350,9.6584,103.59,103.53,65.64977656]
[1744200182548,65.64977656,103.66,103.55,65.64977656]
[1744200182854,70.32667656,103.68,103.57,65.64977656]
[1744200183660,9.6556,103.62,103.61,0.06888891]
[1744200184454,0.07460049,103.64,103.61,0.06888891]
[1744200184654,0.07460049,103.64,103.61,65.71866547]
[1744200184948,4.6769,103.68,103.61,0.06888891]
[1744200185154,4.6769,103.68,103.6,129.36177656]
[1744200185356,28.9314,103.75,103.64,65.64977656]
[1744200185555,4.5959,103.73,103.68,9.6492]
[1744200185749,577.39502256,103.8,103.7,65.64977656]
[1744200185944,17.39092256,103.8,103.72,65.64977656]
[1744200186150,0.06539559,103.76,103.74,0.06384165]
[1744200186449,9.6431,103.75,103.74,0.06384165]
[1744200186950,0.06539559,103.76,103.69,363.5779]
[1744200187142,0.06539559,103.76,103.7,65.64977656]
[1744200187450,9.6415,103.77,103.74,65.64977656]
[1744200187753,124.86887656,103.8,103.69,70.22767656]
[1744200187954,9.6457,103.73,103.69,70.22767656]
[1744200188357,59.2191,103.8,103.7,0.06802835]
[1744200188553,0.07260427,103.72,103.7,0.06802835]
[1744200188756,65.64977656,103.79,103.74,0.07309393]
[1744200188956,65.64977656,103.79,103.69,70.22767656]
[1744200189144,9.6455,103.73,103.69,70.22767656]
[1744200189349,65.64977656,103.79,103.73,0.06641603]
[1744200189555,9.6426,103.76,103.71,65.64977656]
[1744200189852,9.6426,103.76,103.75,0.06135007]
[1744200190053,9.6417,103.77,103.7,127.64977656]
[1744200190253,0.07415567,103.75,103.74,0.06098747]
[1744200190556,51.18009024,103.83,103.74,0.06098747]
[1744200190758,51.18009024,103.83,103.77,65.64977656]
[1744200190959,0.07207884,103.8,103.75,65.64977656]
[1744200191154,0.07207884,103.8,103.77,65.7231193]
[1744200191350,0.07207884,103.8,103.79,65.64977656]
[1744200191544,51.18009024,103.83,103.79,65.64977656]
[1744200191749,51.18009024,103.83,103.78,4.5636]
[1744200192257,4.5152,103.85,103.78,4.5636]
[1744200192662,0.06220098,103.83,103.8,0.07000008]
[1744200193443,0.06220098,103.83,103.81,65.64977656]
[1744200193850,9.69840098,103.83,103.81,65.64977656]
[1744200194044,9.69840098,103.83,103.8,0.07000008]
[1744200194045,0.06220098,103.83,103.8,0.07000008]
[1744200194349,9.69840098,103.83,103.8,0.07000008]
[1744200194660,0.06220098,103.83,103.81,65.64977656]
[1744200195046,0.06220098,103.83,103.8,0.07000008]
[1744200195451,0.06220098,103.83,103.75,4.5636]
[1744200195653,65.64977656,103.83,103.73,424.64977656]
[1744200195853,9.144,103.82,103.71,4.7742]
[1744200196550,65.64977656,103.81,103.71,4.7742]
[1744200196758,0.0612953,103.78,103.75,0.06183525]
[1744200196960,9.643,103.76,103.75,0.06183525]
[1744200197157,9.643,103.76,103.66,424.64977656]
[1744200197158,54.52,103.76,103.66,424.64977656]
[1744200197560,9.6498,103.68,103.66,359.0]
[1744200197762,74.75187656,103.75,103.66,65.64977656]
[1744200198065,9.6483,103.7,103.66,75.30087656]
[1744200198254,54.5305664,103.72,103.69,0.07039674]
[1744200198455,54.5305664,103.72,103.64,65.64977656]
[1744200198650,129.21187656,103.75,103.64,65.64977656]
[1744200198851,9.1021,103.75,103.66,65.64977656]
[1744200199055,74.75187656,103.75,103.64,424.64977656]
[1744200199261,54.46,103.74,103.64,424.64977656]
[1744200199766,0.06700035,103.7,103.68,0.07314898]
[1744200200066,54.52700035,103.7,103.62,70.34317656]
[1744200200257,54.52700035,103.7,103.62,4.6934]
[1744200200455,54.46,103.7,103.6,424.64977656]
[1744200200659,9.6531,103.65,103.61,9.6556]
[1744200200858,54.46,103.7,103.6,424.64977656]
[1744200201060,0.06528274,103.64,103.62,65.71513302]
[1744200201254,0.06528274,103.64,103.63,9.6539]
[1744200201459,509.2,103.72,103.62,65.64977656]
[1744200202268,9.6516,103.66,103.62,75.30447656]
[1744200202462,9.6516,103.66,103.62,9.6547]
[1744200202764,509.2,103.72,103.63,0.06972942]
[1744200202959,0.06270781,103.65,103.61,127.64977656]
[1744200203265,509.2,103.72,103.66,0.07104199]
[1744200203469,0.07117105,103.64,103.6,359.0]
[1744200203670,54.46,103.69,103.61,65.64977656]
[1744200203970,9.6513,103.67,103.61,65.64977656]
[1744200204263,426.5821,103.75,103.65,65.64977656]
[1744200204468,9.6502,103.68,103.63,75.30317656]
[1744200204663,54.48,103.71,103.63,65.64977656]
[1744200205061,4.6942,103.7,103.61,65.64977656]
[1744200205260,4.6942,103.7,103.64,0.07362048]
[1744200205461,0.06552204,103.67,103.64,0.07362048]
[1744200205661,9.6524,103.65,103.64,0.07362048]
[1744200205861,0.06552204,103.67,103.64,0.07362048]
[1744200206566,9.6524,103.65,103.64,0.07362048]
[1744200206865,0.06552204,103.67,103.64,0.07362048]
[1744200207071,9.6524,103.65,103.64,0.07362048]
[1744200207564,0.06552204,103.67,103.64,0.07362048]
[1744200207766,9.652,103.66,103.64,0.07362048]
[1744200208273,9.71662204,103.67,103.64,0.07362048]
[1744200208570,0.06552204,103.67,103.64,0.07362048]
[1744200209075,0.06552204,103.67,103.66,65.64977656]
[1744200209370,0.06552204,103.67,103.64,0.07362048]
[1744200209966,0.06552204,103.67,103.64,9.72702048]
[1744200210159,0.06552204,103.67,103.64,0.07362048]
[1744200210471,0.06552204,103.67,103.64,9.72652048]
[1744200210764,0.06552204,103.67,103.64,0.07362048]
[1744200211164,0.06552204,103.67,103.65,9.6516]
[1744200213471,0.06552204,103.67,103.66,9.6515]
[1744200213969,0.06552204,103.67,103.66,75.30127656]
[1744200214174,54.48,103.73,103.66,65.64977656]
[1744200214374,54.48,103.73,103.64,424.64977656]
[1744200214673,65.64977656,103.71,103.64,359.0]
[1744200215165,9.6512,103.67,103.66,0.06609471]
[1744200216875,0.06456048,103.69,103.66,0.06609471]
[1744200217276,9.6503,103.68,103.66,0.06609471]
[1744200217770,0.06456048,103.69,103.66,0.06609471]
[1744200218182,0.06456048,103.69,103.68,9.6496]
[1744200219179,54.48,103.73,103.7,9.6475]
[1744200219370,9.6453,103.73,103.7,9.6475]
[1744200219779,4.6396,103.74,103.68,65.64977656]
[1744200220278,4.472,103.75,103.7,9.6474]
[1744200220478,0.06770038,103.72,103.7,9.71251218]
[1744200220679,0.06770038,103.72,103.7,0.06511218]
[1744200221094,9.6469,103.71,103.7,0.06511218]
[1744200221270,0.06770038,103.72,103.7,0.06511218]
[1744200221471,9.71420038,103.72,103.7,0.06511218]
[1744200221983,0.06770038,103.72,103.7,9.71231218]
[1744200222281,0.06770038,103.72,103.7,0.06511218]
[1744200222970,0.06770038,103.72,103.7,9.71251218]
[1744200223281,0.06770038,103.72,103.7,0.06511218]
[1744200223480,0.06770038,103.72,103.7,9.71231218]
[1744200223676,9.6469,103.71,103.7,0.06511218]
[1744200223883,0.06770038,103.72,103.7,0.06511218]
[1744200224182,9.6469,103.71,103.7,0.06511218]
[1744200225083,9.71370038,103.72,103.7,0.06511218]
[1744200225686,9.6469,103.71,103.7,0.06511218]
[1744200226374,54.54770038,103.72,103.65,65.64977656]
[1744200226680,54.48,103.72,103.65,65.64977656]
[1744200227278,9.65,103.68,103.65,65.64977656]
[1744200227468,9.65,103.68,103.67,0.06364672]
[1744200227670,0.07374055,103.7,103.67,0.06364672]
[1744200227874,54.48,103.72,103.67,0.06364672]
[1744200228079,0.06424328,103.7,103.67,0.06364672]
[1744200229185,9.6492,103.69,103.67,0.06364672]
[1744200229383,0.06424328,103.7,103.67,62.06364672]
[1744200229584,9.6488,103.69,103.67,62.06364672]
[1744200229788,0.06424328,103.7,103.67,71.71404672]
[1744200230180,9.71264328,103.7,103.67,71.71404672]
[1744200230385,4.8957,103.76,103.69,65.64977656]
[1744200231186,9.6469,103.71,103.69,65.64977656]
[1744200231381,59.3557,103.76,103.67,541.10977656]
[1744200231581,0.06151616,103.71,103.69,0.07033536]
[1744200231886,4.7647,103.75,103.67,541.10977656]
[1744200232080,0.07020179,103.71,103.69,0.07041308]
[1744200232275,14.4085,103.75,103.69,65.72018964]
[1744200232481,14.4085,103.75,103.71,9.6462]
[1744200232686,4.7647,103.75,103.71,9.6462]
[1744200232986,9.6441,103.74,103.71,9.6462]
[1744200233387,0.0703864,103.74,103.72,9.6459]
[1744200233687,0.0703864,103.74,103.71,65.71845085]
[1744200233990,0.0703864,103.74,103.71,0.06867429]
[1744200234395,0.0703864,103.74,103.72,9.6454]
[1744200234689,0.0703864,103.74,103.73,65.64977656]
[1744200235189,4.7148,103.78,103.73,65.64977656]
[1744200235387,4.7148,103.78,103.71,8.5251]
[1744200235688,9.6417,103.77,103.71,8.5251]
[1744200235985,4.7148,103.78,103.71,8.5251]
[1744200236192,59.1548,103.78,103.71,4.5474]
[1744200236489,9.645,103.74,103.73,0.06491252]
[1744200237490,9.649,103.69,103.66,70.21237656]
[1744200237692,120.08977656,103.74,103.65,9.652]
[1744200238082,9.6498,103.68,103.64,65.64977656]
[1744200238282,54.44,103.7,103.62,65.64977656]
[1744200238579,9.6502,103.68,103.62,65.64977656]
[1744200238784,0.07140617,103.67,103.65,0.07219789]
[1744200239884,0.07140617,103.67,103.65,9.72419789]
[1744200240090,0.07140617,103.67,103.65,0.07219789]
[1744200241386,0.07140617,103.67,103.65,9.72419789]
[1744200241584,0.07140617,103.67,103.65,0.07219789]
[1744200243194,75.36118273,103.67,103.56,420.82435578]
[1744200243393,65.64977656,103.65,103.56,491.31323234]
[1744200243581,54.46,103.64,103.56,425.66345578]
[1744200243779,54.46,103.64,103.56,420.82435578]
[1744200243979,65.64977656,103.63,103.56,420.82435578]
[1744200244185,9.6586,103.59,103.55,105.20608894]
[1744200244385,0.0660849,103.61,103.59,0.06581869]
[1744200244683,65.64977656,103.63,103.55,105.20608894]
[1744200244880,9.6604,103.57,103.55,105.20608894]
[1744200245794,9.6604,103.57,103.55,105.26691953]
[1744200245990,9.73446596,103.57,103.55,105.26691953]
[1744200246190,0.07406596,103.57,103.56,9.6608]
[1744200246590,54.46,103.6,103.58,9.6587]
[1744200246793,54.48,103.63,103.56,65.64977656]
[1744200246992,59.196,103.66,103.58,65.64977656]
[1744200247294,59.196,103.66,103.55,65.64977656]
[1744200247487,59.196,103.66,103.57,65.64977656]
[1744200247688,59.196,103.66,103.59,9.6579]
[1744200247890,0.07291039,103.63,103.6,0.07184185]
[1744200248800,0.07291039,103.63,103.6,9.72844185]
[1744200249396,0.07291039,103.63,103.6,0.07184185]
[1744200249397,9.72721039,103.63,103.6,0.07184185]
[1744200249600,0.07291039,103.63,103.6,0.07184185]
[1744200250101,0.07291039,103.63,103.61,9.6556]
[1744200250685,0.07291039,103.63,103.6,0.07184185]
[1744200250686,9.72781039,103.63,103.6,0.07184185]
[1744200251003,0.07291039,103.63,103.6,0.07184185]
[1744200251200,0.07291039,103.63,103.6,9.72834185]
[1744200251497,0.07291039,103.63,103.6,0.07184185]
[1744200252798,0.07291039,103.63,103.6,9.72884185]
[1744200252993,65.64977656,103.72,103.61,65.64977656]
[1744200253199,65.64977656,103.72,103.63,65.64977656]
[1744200253393,9.6517,103.66,103.62,9.6547]
[1744200253594,65.64977656,103.72,103.6,65.64977656]
[1744200253901,13.9894,103.73,103.64,65.64977656]
[1744200254102,255.90045122,103.77,103.68,65.64977656]
[1744200254302,255.90045122,103.77,103.7,65.64977656]
[1744200254503,0.06987491,103.73,103.7,65.64977656]
[1744200254704,0.06987491,103.73,103.72,0.06245027]
[1744200254903,0.06987491,103.73,103.67,59.3547]
[1744200255201,0.06987491,103.73,103.65,4.8977]
[1744200255202,0.06987491,103.73,103.71,0.0627251]
[1744200255401,4.58497491,103.73,103.71,0.0627251]
[1744200255601,9.6468,103.72,103.68,9.6495]
[1744200255901,4.58035683,103.73,103.68,9.6495]
[1744200256102,4.58035683,103.73,103.69,0.07271002]
[1744200256893,9.6464,103.72,103.69,0.07271002]
[1744200258507,0.06525683,103.73,103.69,0.07271002]
[1744200258891,9.71075683,103.73,103.69,0.07271002]
[1744200259206,0.06525683,103.73,103.69,0.07271002]
[1744200259895,0.06525683,103.73,103.7,9.6477]
[1744200260504,9.71045683,103.73,103.7,9.6477]
[1744200260803,9.71045683,103.73,103.69,0.07271002]
[1744200261595,0.06525683,103.73,103.7,9.6474]
[1744200261797,0.06525683,103.73,103.69,0.07271002]
[1744200262098,0.06525683,103.73,103.7,65.64977656]
[1744200263101,0.06525683,103.73,103.72,9.6459]
[1744200263809,59.0239,103.81,103.72,120.06977656]
[1744200263999,59.0239,103.81,103.75,65.64977656]
[1744200264307,9.6408,103.78,103.75,9.6427]
[1744200264604,9.6428,103.76,103.73,70.10257656]
[1744200264795,59.0239,103.81,103.74,9.6438]
[1744200264991,0.06602094,103.76,103.74,9.6438]
[1744200265200,9.6418,103.77,103.74,9.6438]
[1744200265398,0.07174511,103.76,103.74,9.71256206]
[1744200267206,0.07174511,103.76,103.74,0.06876206]
[1744200267800,9.6389,103.8,103.78,9.6399]
[1744200268106,4.6039,103.81,103.75,65.64977656]
[1744200268802,9.0194,103.83,103.75,65.64977656]
[1744200269006,0.0683813,103.79,103.77,0.07081808]
[1744200269209,4.5339,103.85,103.78,65.64977656]
[1744200269600,9.6362,103.83,103.8,9.6377]
[1744200269906,9.6362,103.83,103.78,65.64977656]
[1744200269907,4.5339,103.85,103.78,65.64977656]
[1744200270508,0.07102224,103.83,103.8,0.06669748]
[1744200270711,9.6381,103.81,103.8,0.06669748]
[1744200274702,0.07102224,103.83,103.8,0.06669748]
[1744200275209,9.6376,103.81,103.8,0.06669748]
[1744200276406,0.07102224,103.83,103.8,0.06669748]
[1744200277113,9.6376,103.81,103.8,0.06669748]
[1744200280915,9.6408,103.78,103.74,98.59170696]
[1744200281520,9.6408,103.78,103.75,9.6429]
[1744200281717,54.36,103.82,103.73,4.4528]
[1744200282022,0.06948629,103.78,103.75,0.06623262]
[1744200282208,4.55868629,103.78,103.71,9.6462]
[1744200282410,4.5129,103.81,103.75,0.06972093]
[1744200282610,9.6389,103.8,103.76,40.10900696]
[1744200282818,0.06473408,103.79,103.76,40.10900696]
[1744200283216,9.6403,103.78,103.77,0.06274361]
[1744200283812,0.06473408,103.79,103.77,0.06274361]
[1744200284119,0.06473408,103.79,103.77,9.70404361]
[1744200284623,0.06473408,103.79,103.77,0.06274361]
[1744200284917,9.70493408,103.79,103.77,0.06274361]
[1744200285416,0.06473408,103.79,103.77,0.06274361]
[1744200286922,99.86408046,103.89,103.78,40.10900696]
[1744200287117,108.44940696,103.88,103.77,44.76090696]
[1744200287322,108.44940696,103.88,103.79,9.6389]
[1744200288026,0.06145535,103.85,103.82,0.07106408]
[1744200288722,9.6357,103.83,103.82,0.07106408]
[1744200290024,9.6393,103.8,103.76,359.0]
[1744200290222,9.6393,103.8,103.75,40.10900696]
[1744200290631,9.6394,103.79,103.75,40.10900696]
[1744200291136,0.06510597,103.78,103.76,0.07248879]
[1744200291331,0.06510597,103.78,103.77,9.6413]
[1744200292138,0.06510597,103.78,103.76,9.71408879]
[1744200292332,0.06510597,103.78,103.76,0.07248879]
[1744200292827,0.06510597,103.78,103.77,9.6413]
[1744200293932,4.8707,103.82,103.78,9.6399]
[1744200294432,9.6382,103.81,103.78,9.6399]
[1744200294626,9.6382,103.81,103.79,9.6393]
[1744200294826,9.6382,103.81,103.77,40.10900696]
[1744200295034,9.70869046,103.81,103.79,0.06626082]
[1744200295236,9.6385,103.8,103.79,0.06626082]
[1744200295534,0.07049046,103.81,103.79,0.06626082]
[1744200295924,9.70849046,103.81,103.79,9.70526082]
[1744200296333,0.07049046,103.81,103.79,9.70526082]
[1744200296533,0.07049046,103.81,103.79,0.06626082]
[1744200296937,0.07049046,103.81,103.79,40.17526778]
[1744200297134,9.6351,103.84,103.81,9.6368]
[1744200297338,4.557,103.87,103.81,40.10900696]
[1744200297533,9.6342,103.85,103.82,9.6358]
[1744200298234,9.6852927,103.85,103.83,9.6357]
[1744200299146,0.0510927,103.85,103.82,0.07305942]
[1744200299335,0.0510927,103.85,103.83,40.10900696]
[1744200299833,9.6317,103.88,103.83,40.10900696]
[1744200300238,9.632,103.87,103.84,9.6342]
[1744200300436,90.35489743,103.91,103.83,40.10900696]
[1744200300844,9.6332,103.86,103.82,4.7477]
[1744200301342,9.6325,103.87,103.84,9.634]
[1744200301644,54.26,103.89,103.84,9.634]
[1744200301847,9.6333,103.86,103.84,0.07399501]
[1744200302042,54.26,103.89,103.84,0.07399501]
[1744200302344,54.26,103.89,103.82,9.6363]
[1744200302545,54.26,103.89,103.8,4.6493]
[1744200302751,54.26,103.89,103.81,40.10900696]
[1744200303046,54.26,103.89,103.8,44.75830696]
[1744200303343,0.06754259,103.86,103.83,0.06220513]
[1744200303943,9.6348,103.84,103.83,0.06220513]
[1744200304335,54.26,103.85,103.77,40.10900696]
[1744200304534,9.6385,103.8,103.78,9.64]
[1744200304838,63.3964,103.85,103.76,9.4153]
[1744200305037,63.3964,103.85,103.77,40.10900696]
[1744200305548,0.07383513,103.82,103.8,0.06656761]
[1744200306139,9.6376,103.81,103.8,0.06656761]
[1744200306442,0.07383513,103.82,103.8,0.06656761]
[1744200306647,0.07383513,103.82,103.8,9.70476761]
[1744200307244,0.07383513,103.82,103.8,0.06656761]
[1744200307644,0.07383513,103.82,103.74,40.10900696]
[1744200307849,9.64,103.79,103.74,40.10900696]
[1744200308251,9.64,103.79,103.77,9.6412]
[1744200308542,9.6404,103.78,103.74,40.10900696]
[1744200308842,0.07151636,103.79,103.77,0.06482691]
[1744200309040,54.26,103.84,103.74,40.10900696]
[1744200309236,0.06832473,103.79,103.77,0.06526643]
[1744200309438,94.36900696,103.79,103.7,105.20608894]
[1744200309735,40.10900696,103.75,103.7,105.20608894]
[1744200309931,40.10900696,103.73,103.7,75.82278894]
[1744200310140,9.6469,103.71,103.7,75.82278894]
[1744200311134,59.13146846,103.72,103.63,197.91814038]
[1744200311449,59.0686,103.72,103.63,197.91814038]
[1744200312044,99.17760696,103.72,103.63,157.80913342]
[1744200312245,0.06158176,103.69,103.67,0.06348884]
[1744200312646,9.71098176,103.69,103.67,0.06348884]
[1744200312846,0.06158176,103.69,103.67,0.06348884]
[1744200314946,0.06158176,103.69,103.67,40.1724958]
[1744200315149,58.8113,103.75,103.67,40.1724958]
[1744200315453,58.8113,103.75,103.67,44.90160696]
[1744200315655,9.6451,103.73,103.69,9.6481]
[1744200315953,58.8113,103.75,103.67,44.90160696]
[1744200316256,54.28,103.75,103.69,40.10900696]
[1744200316551,0.06538056,103.72,103.7,0.07353856]
[1744200316850,0.06538056,103.72,103.71,9.6469]
[1744200317052,0.06538056,103.72,103.7,0.07353856]
[1744200317847,54.3,103.71,103.63,40.10900696]
[1744200318353,54.3,103.71,103.65,9.6518]
[1744200318548,54.3,103.71,103.62,13.9217]
[1744200318746,0.07365481,103.68,103.62,13.9217]
[1744200318943,9.72385481,103.68,103.65,9.71591232]
[1744200319145,0.07365481,103.68,103.65,9.71591232]
[1744200319453,0.07365481,103.68,103.65,0.06421232]
[1744200320354,9.72355481,103.68,103.65,9.71611232]
[1744200320553,9.72355481,103.68,103.65,0.06421232]
[1744200321059,9.72355481,103.68,103.65,9.71621232]
[1744200321249,0.07365481,103.68,103.65,0.06421232]
[1744200321650,0.07365481,103.68,103.67,9.6506]
[1744200322656,0.07365481,103.68,103.66,9.6509]
[1744200322859,0.07365481,103.68,103.65,40.17321928]
[1744200323249,0.07365481,103.68,103.67,49.75960696]
[1744200323554,54.22,103.75,103.67,40.10900696]
[1744200323759,54.22,103.75,103.71,9.6464]
[1744200323949,9.6454,103.73,103.68,54.02050696]
[1744200324148,54.22,103.75,103.68,54.02050696]
[1744200324651,54.22,103.75,103.7,0.07057091]
[1744200324652,0.06753795,103.73,103.7,0.07057091]
[1744200324848,0.06753795,103.73,103.71,9.6462]
[1744200325661,0.06753795,103.73,103.72,9.6459]
[1744200325854,4.8079,103.81,103.72,40.10900696]
[1744200326055,14.1415,103.81,103.72,40.10900696]